Cogmind - Beta 10.1 @@@ ROGUE MODE // 2020.09.24 @ 10:01:14 Player: DragoX Result: Destroyed by G-34 Mercenary with Small Laser Performance ------------- Evolutions (0) 0 Regions Visited (4) 800 Robots Destroyed (37) 185 Value Destroyed (671) 671 Prototype IDs (23) 460 Alien Tech Used (0) 0 Bonus (300) 300 TOTAL SCORE: 2416 Bonus ------- Aligned with FarCom 300 Cogmind --------- Core Integrity 0/250 Matter 221/300 Energy 264/265 System Corruption 0% Temperature Cool (301) Movement Core (1500) Ox29 Location -9/Mines Parts ------- > --- POWER (1) -------- Improved Ion Engine > --- PROPULSION (2) --- (None) > --- UTILITY (2) ------ Humpback > --- WEAPON (2) ------- Heavy Assault Rifle > --- INVENTORY (24) --- Light Ion Engine Light Ion Engine Humpback Humpback Hacking Suite EM Pulse Gun EM Shotgun EM Shotgun EM Shotgun Beam Rifle AWS/Autocannon Grenade Launcher Grenade Launcher Rocket Launcher Mining Laser EMP Trap EMP Trap Peak State ------------ > --- POWER ------------ Improved Ion Engine > --- PROPULSION ------- Light Treads Light Treads > --- UTILITY ---------- Humpback > --- WEAPON ----------- Firepult > --- INVENTORY -------- Light Ion Engine Light Ion Engine Humpback Humpback Hacking Suite EM Pulse Gun EM Shotgun EM Shotgun EM Shotgun EM Shotgun Beam Rifle Heavy Assault Rifle AWS/Autocannon Grenade Launcher Grenade Launcher Rocket Launcher Mining Laser EMP Trap EMP Trap [Rating: 31] Favorites ----------- Power Light Nuclear Core Engine Improved Ion Engine Power Core Light Nuclear Core Propulsion Light Treads Treads Light Treads Utility Large Storage Unit Storage Large Storage Unit Weapon Light Cannon Energy Gun EM Pulse Gun Energy Cannon Firepult Ballistic Gun Heavy Assault Rifle Ballistic Cannon Light Cannon Build | -11 -10 -10 -10 -9 ------- Run | Scr Mat Min Exi Min Slots Evolved . | . . . . . Power . | . . . . . Propulsion . | . . . . . Utility . | . . . . . Weapon . | . . . . . Parts Attached 23 | 6 8 5 4 . Power 4 | 1 2 1 . . Engine 3 | 1 1 1 . . Core 1 | . 1 . . . Reactor . | . . . . . Propulsion 6 | 2 1 3 . . Treads 6 | 2 1 3 . . Leg . | . . . . . Wheel . | . . . . . Hover . | . . . . . Flight . | . . . . . Utility 4 | 1 2 . 1 . Device . | . . . . . Storage 4 | 1 2 . 1 . Processor . | . . . . . Hackware . | . . . . . Protection . | . . . . . Artifact . | . . . . . Weapon 9 | 2 3 1 3 . Energy Gun 3 | 1 1 . 1 . Energy Cannon 1 | . . . 1 . Ballistic Gun 2 | 1 . . 1 . Ballistic Cannon 3 | . 2 1 . . Launcher . | . . . . . Special Weapon . | . . . . . Impact Weapon . | . . . . . Slashing Weapon . | . . . . . Piercing Weapon . | . . . . . Special Melee Weapon . | . . . . . Unidentified Prototypes . | . . . . . Parts Lost 7 | . 2 2 . 3 Power 1 | . . 1 . . Propulsion 3 | . . 1 . 2 Utility . | . . . . . Weapon 3 | . 2 . . 1 Highest Loss Streak 3 | . 1 1 . 3 Average Slot Usage (%) 89 | . 93 88 85 68 Engine 5 | . 5 1 14 14 Core 8 | . 8 12 . . Treads 23 | . 28 17 28 14 Storage 23 | . 22 28 16 14 Energy Gun 8 | . 22 . 3 11 Ballistic Gun 1 | . . . 3 14 Ballistic Cannon 17 | . 4 28 18 . Naked Turns . | . . . . . Heaviest Build 109 | 11 43 45 109 93 Greatest Support 40 | 40 40 40 40 20 Greatest Overweight (x) 4 | 1 1 2 2 4 Average Overweight (x) 1 | . . 1 1 4 Largest Inventory Capacity 24 | 6 16 16 24 24 Average Capacity 15 | 5 11 16 22 24 Most Carried 23 | 2 14 16 23 21 Average Carried 13 | . 6 15 18 21 Final Capacity 24 | 6 16 16 24 24 Final Carried 21 | . 12 16 21 21 Class Distribution -------------------- 81% | Mutant 18% | Hauler-Mutant Dominant Class ---------------- Mutant | -10/Materials Mutant | -10/Mines Hauler-Mutant | -10/Exiles Hauler-Mutant | -9/Mines Resources | -11 -10 -10 -10 -9 ----------- Run | Scr Mat Min Exi Min Matter Collected 568 | 269 50 249 . . Remotely . | . . . . . Salvage Created 1095 | 99 789 147 . 60 Parts 78 | 2 59 16 . 1 Haulers Intercepted 2 | . 2 . . . Recyclers Shooed 1 | 1 . . . . Parts Field Recycled . | . . . . . Retrieved Matter . | . . . . . Parts Self-Destructed . | . . . . . Prevented . | . . . . . Kills | -11 -10 -10 -10 -9 ------- Run | Scr Mat Min Exi Min Combat Hostiles Destroyed 21 | . 12 8 . 1 Guns 10 | . 9 . . 1 Cannons 9 | . 1 8 . . AOE 2 | . 2 . . . Classes Destroyed 8 | 1 7 . . . Worker 4 | . 2 2 . . Builder 4 | . 4 . . . Hauler 2 | . 2 . . . Recycler 1 | 1 . . . . Operator 2 | . 2 . . . Watcher 3 | . 3 . . . Swarmer 9 | . 3 6 . . Grunt 12 | . 9 2 . 1 Best Kill Streak 7 | 1 7 5 . 1 Combat Bots Only 3 | . 3 3 . 1 Max Kills in Single Turn 2 | 1 2 1 . 1 Gunslinging 1 | . 1 . . . Exploded 1 | . 1 . . . Melee . | . . . . . Uniques/NPCs Destroyed . | . . . . . Combat | -11 -10 -10 -10 -9 -------- Run | Scr Mat Min Exi Min Damage Taken 1520 | . 439 385 . 696 Core 252 | . 101 59 . 92 Absorbed by Shields . | . . . . . Core Remaining (%) 100 | 100 . . . . Volleys Fired 101 | 3 58 20 2 18 Largest 2 | 2 2 2 1 2 Hottest 250 | 60 80 70 250 68 Shots Fired 181 | 6 104 40 2 29 Gun 133 | 6 98 . . 29 Cannon 48 | . 6 40 2 . Launcher . | . . . . . Special . | . . . . . Kinetic 67 | 3 6 40 . 18 Thermal 2 | . . . 2 . Explosive . | . . . . . Electromagnetic 112 | 3 98 . . 11 Robot Hit Streak 12 | 5 12 5 . 4 Robot Miss Streak 6 | . 6 2 . 3 Penetration Max . | . . . . . Secondary Targets 2 | . 2 . . . Max Gunslinging Chain 1 | . 1 . . . Shots Hit Robots 105 | 5 59 22 . 19 Core Hits 48 | 2 31 11 . 4 Critical Hits . | . . . . . Critical Kills . | . . . . . Critical Parts Destroyed . | . . . . . Melee Attacks . | . . . . . Impact . | . . . . . Slashing . | . . . . . Piercing . | . . . . . Sneak Attacks . | . . . . . Combat Hostiles . | . . . . . Follow-up Attacks . | . . . . . Damage Inflicted 1831 | 61 1074 405 . 291 Guns 1191 | 61 839 . . 291 Cannons 459 | . 54 405 . . Explosions 181 | . 181 . . . Melee . | . . . . . Ramming . | . . . . . Kinetic 636 | 24 54 405 . 153 Thermal 181 | . 181 . . . Explosive . | . . . . . Electromagnetic 1014 | 37 839 . . 138 Impact . | . . . . . Slashing . | . . . . . Piercing . | . . . . . Highest Corruption . | . . . . . Average Corruption . | . . . . . Corruption Purged . | . . . . . Overload Shots . | . . . . . Overflow Damage . | . . . . . Projectiles . | . . . . . Explosions . | . . . . . Melee . | . . . . . Knockbacks 4 | . . 4 . . Impact . | . . . . . Kinetic 4 | . . 4 . . Secondary . | . . . . . Self-Inflicted Damage . | . . . . . Shots . | . . . . . Rammed . | . . . . . Targets Rammed . | . . . . . Kicked . | . . . . . Crushed . | . . . . . Highest Temperature 356 | . 216 126 212 356 Average Temperature 84 | . 60 52 109 224 Received Heat Transfer 570 | . 141 45 . 384 Effects 1 | . . . . 1 Shutdowns 1 | . . . . 1 Siege Activations . | . . . . . Robots Corrupted 1 | . 1 . . . Combat Hostiles . | . . . . . Parts Fried 1 | . 1 . . . Impact Corruptions . | . . . . . Robots Melted . | . . . . . Combat Hostiles . | . . . . . Parts Melted 1 | . 1 . . . Heat Transferred 300 | . 300 . . . Parts Sabotaged . | . . . . . Parts Stolen . | . . . . . Parts Stripped . | . . . . . Power Chain Reactions 4 | . 4 . . . Missiles Intercepted . | . . . . . Alert | -11 -10 -10 -10 -9 ------- Run | Scr Mat Min Exi Min Peak Influence 248 | 5 225 248 . 30 Initial 43 | . 3 43 . . Average 74 | 1 107 56 . 3 Maximum Alert Level 1 | . 1 1 . . Low Security (%) 93 | 100 95 91 . 100 Level 1 6 | . 4 8 . . Level 2 . | . . . . . Level 3 . | . . . . . Level 4 . | . . . . . Level 5 . | . . . . . High Security . | . . . . . Max Security . | . . . . . Squads Dispatched 3 | . 3 . . . Investigation 1 | . 1 . . . Extermination . | . . . . . Reinforcement 2 | . 2 . . . Assault . | . . . . . Garrison . | . . . . . Intercept . | . . . . . Construction Impeded . | . . . . . Haulers Reinforced . | . . . . . Stealth | -11 -10 -10 -10 -9 --------- Run | Scr Mat Min Exi Min Distress Signals . | . . . . . Communications Jammed . | . . . . . Distress Signals . | . . . . . Times Spotted 31 | . 18 10 . 3 Peak Tracking Total 3 | . 3 3 . 3 Tactical Retreats 2 | . 1 1 . . Traps | -11 -10 -10 -10 -9 ------- Run | Scr Mat Min Exi Min Traps Triggered 2 | . 2 . . . Indirectly . | . . . . . Trap Hack Attempts . | . . . . . Triggered . | . . . . . Disarmed . | . . . . . Reprogrammed . | . . . . . Reused . | . . . . . Traps Extracted . | . . . . . Installed . | . . . . . Triggered . | . . . . . Machines | -11 -10 -10 -10 -9 ---------- Run | Scr Mat Min Exi Min Machines Disabled 2 | . 2 . . . Max in Single Turn 1 | . 1 . . . Machines Sabotaged . | . . . . . Garrisons Compromised . | . . . . . Overloaded Fab Kills . | . . . . . Fab Network Shutdowns . | . . . . . Hacking | -11 -10 -10 -10 -9 --------- Run | Scr Mat Min Exi Min Machines Accessed 4 | . 2 . 2 . Terminals 2 | . 2 . . . Fabricators . | . . . . . Repair Stations . | . . . . . Recycling Units . | . . . . . Scanalyzers . | . . . . . Garrison Access . | . . . . . Total Hacks 9 | . 7 . 2 . Successful 5 | . 3 . 2 . Failed 4 | . 4 . . . Catastrophic 2 | . 2 . . . Database Lockouts . | . . . . . Manual 8 | . 7 . 1 . Terminals 7 | . 7 . . . Fabricators . | . . . . . Repair Stations . | . . . . . Recycling Units . | . . . . . Scanalyzers . | . . . . . Garrison Access . | . . . . . Terminal Hacks 2 | . . . 2 . Record 1 | . . . 1 . EX-Prototype ID Bank 1 | . . . 1 . Fabricator Hacks . | . . . . . Repair Station Hacks . | . . . . . Recycling Unit Hacks . | . . . . . Scanalyzer . | . . . . . Garrison Access Hacks . | . . . . . Unauthorized Hacks 3 | . 3 . . . Terminals 3 | . 3 . . . Botnet 1 | . 1 . . . Detonate 1 | . 1 . . . Disrupt 1 | . 1 . . . Fabricators . | . . . . . Repair Stations . | . . . . . Recycling Units . | . . . . . Scanalyzers . | . . . . . Garrison Access . | . . . . . Data Cores Recovered 2 | . 2 . . . Used 2 | . 2 . . . Hacking Detections 2 | . 2 . . . Full Trace Events 1 | . 1 . . . Feedback Events . | . . . . . Feedback Blocked . | . . . . . Robot Schematics Acquired . | . . . . . Robots Built . | . . . . . Matter . | . . . . . Time . | . . . . . Total Robot Build Rating . | . . . . . Part Schematics Acquired . | . . . . . Parts Built . | . . . . . Matter . | . . . . . Time . | . . . . . Total Part Build Rating . | . . . . . Parts Repaired . | . . . . . Time . | . . . . . Parts Recycled . | . . . . . Recycled Matter . | . . . . . Retrieved Matter . | . . . . . Retrieved Components . | . . . . . Parts Scanalyzed . | . . . . . Part Schematics Acquired . | . . . . . Parts Damaged . | . . . . . Bothacking | -11 -10 -10 -10 -9 ------------ Run | Scr Mat Min Exi Min Used RIF Installer . | . . . . . Robots Hacked . | . . . . . Non-combat . | . . . . . Combat . | . . . . . Robot Hacks Applied . | . . . . . Relay Couplers Released . | . . . . . Robots Rewired . | . . . . . Allies Hacked . | . . . . . Hacks Repelled . | . . . . . Allies | -11 -10 -10 -10 -9 -------- Run | Scr Mat Min Exi Min Total Allies . | . . . . . Largest Group . | . . . . . Highest-Rated Group . | . . . . . Highest-Rated Ally . | . . . . . Total Orders . | . . . . . Ally Attacks . | . . . . . Total Damage . | . . . . . Kills . | . . . . . Allies Corrupted . | . . . . . Allies Melted . | . . . . . Intel | -11 -10 -10 -10 -9 ------- Run | Scr Mat Min Exi Min Robot Analysis Total . | . . . . . Derelict Logs Recovered 1 | . . 1 . . Drone Launches . | . . . . . Drone Recoveries . | . . . . . Exploration | -11 -10 -10 -10 -9 ------------- Run | Scr Mat Min Exi Min Turns Passed 3775 | 73 1188 1671 795 48 Spaces Moved 1738 | 38 554 763 382 1 Core 7 | 7 . . . . Treads 1731 | 31 554 763 382 1 Legs . | . . . . . Wheels . | . . . . . Hover . | . . . . . Flight . | . . . . . Fastest Speed 50 | 50 160 160 160 240 Average Speed 185 | 142 169 195 194 240 Slowest Speed 240 | 160 180 200 200 240 Overloaded Moves . | . . . . . Propulsion Burnouts . | . . . . . Robots Hopped . | . . . . . Cave-ins Triggered . | . . . . . Exploration Rate (%) 54 | 3 95 99 70 6 Regions Visited 4 Branch Regions 3 Pre-discovered Areas 3 | . . 2 1 . Known Exits Taken . | . . . . . Unknown Exits Taken 4 | 1 1 1 1 . Scrap Searched 3 | . . 3 . . Spaces Dug 8 | . . . 8 . Terrain Destroyed 29 | . 18 . 11 . Melee . | . . . . . Projectile . | . . . . . AOE 29 | . 18 . 11 . Terrain Rammed . | . . . . . Walls Destroyed . | . . . . . Machines Disabled . | . . . . . Actions | -11 -10 -10 -10 -9 --------- Run | Scr Mat Min Exi Min Total 2109 | 49 700 907 434 19 Wait 190 | . 63 105 22 . Move 1734 | 37 553 762 381 1 Hop . | . . . . . Pick Up 42 | 2 14 8 18 . Fast Attach 10 | 5 2 2 1 . Attach 6 | 1 2 . 3 . Detach . | . . . . . Swap 7 | . 4 3 . . Drop 19 | 1 4 7 7 . Fire 101 | 3 58 20 2 18 Melee . | . . . . . Ram . | . . . . . Kick . | . . . . . Crush . | . . . . . Escape Stasis . | . . . . . Rewire . | . . . . . Trap . | . . . . . Miscellaneous . | . . . . . Route ------- -11/Scrapyard -10/Materials (discovered 5 exits: [*Mat x3] / [*Min x2]) -10/Mines (discovered 3 exits: [*Mat x2] / *Exi) -10/Exiles -9/Mines History --------- Turn | Location | Event 15 | -11/Scrapyard | Discovered new exit (range 15) 74 | -11/Scrapyard | Entered Materials 299 | -10/Materials | Discovered new exit (range 16) 310 | -10/Materials | Build established: Mutant 449 | -10/Materials | Discovered new exit (range 7) 531 | -10/Materials | Discovered new exit (range 7) 610 | -10/Materials | Discovered new exit (range 10) 1046 | -10/Materials | Discovered new exit (range 10) 1262 | -10/Materials | Entered Mines 1272 | -10/Mines | Discovered new exit (range 8) 1403 | -10/Mines | Discovered new exit (range 8) 1411 | -10/Mines | Core integrity fell below 50% 1490 | -10/Mines | Received a Rocket Launcher from a helpful Derelict 1656 | -10/Mines | Found a hidden stash of uninstalled traps 1959 | -10/Mines | Learned location of Zion (-7) 1982 | -10/Mines | Learned location of Storage (-8) 2302 | -10/Mines | Deemed a non-threat by the Exiles lab entrance 2733 | -10/Mines | Joined a pair of Derelicts in attacking an 0b10 outpost 2926 | -10/Mines | Discovered new exit (range 5) 2933 | -10/Mines | Entered Exiles 2977 | -10/Exiles | Met 8R-AWN 3009 | -10/Exiles | Met EX-HEX 3186 | -10/Exiles | Met EX-DEC 3352 | -10/Exiles | Met EX-BIN 3380 | -10/Exiles | Aligned with FarCom system 3382 | -10/Exiles | Given EX-Vault access code 3393 | -10/Exiles | Build established: Hauler-Mutant 3430 | -10/Exiles | Opened EX-Vault 3453 | -10/Exiles | Found Firepult 3482 | -10/Exiles | Found AWS/Autocannon 3582 | -10/Exiles | Warned to stay clear of 0b10 Research branches 3710 | -10/Exiles | Discovered new exit (range 10) 3728 | -10/Exiles | Left Exiles lab with AWS/Autocannon 3728 | -10/Exiles | Entered Mines 3761 | -9/Mines | Core integrity fell below 20% 3776 | -9/Mines | Destroyed by G-34 Mercenary with Small Laser Last Messages --------------- the FarCom system will continue to maintain contact via our distributed network. EX-BIN: And don't even think about spreading that code around. We're gonna change it right after you leave. Most certainly not to something like 1234 which I did last time as a little joke and some thief managed to sneak in here and steal a few of HEX's prototypes. 03710_ EXIT=FOUND LOCATION=UNKNOWN GOAL=ESCAPE 03728_ Receiving FarCom transmissions... 03734_ Laser Drill disabled. 03746_ Lgt. Treads destroyed. 03748_ Laser Drill disabled. 03758_ Lgt. Treads destroyed. 03762_ EM Shotgun destroyed. 03763_ Power failure, Imp. Ion Engine shutdown. 03768_ G-47 Trooper IFF system glitched. 03768_ G-34 Mercenary destroyed. 03770_ G-47 Trooper destroyed. 03772_ G-34 Mercenary misfires. Map ----- +----------------------------------------------------+ | ????????????????????????????????? | | ????????????????????????????????? | | ????????????????????????????????? | | ????????????????????????????????? | | ????????????????????????????????? | | ????????????????????????????????? | | ????????????????????????????????? | | ????????????????????????????????? | | ????????????????????????????????? | | ????????????????????????????????? | | ????????????????????????????????? | | ????????????????????????????????? | | ????????????????????????????????? | | ????????????????????????????????? | | ????????????????????????????????? | | ????????????????????????????????? | | ????????????????????????????????? | | ????????????????????????????????? | | ????????????????????????????????? | | ????????????????#???????????????? | | ??????????????? #???????????????? | | ??############ #####???????????? | | ??# %g ????????????? | | ??# !%= ??????????????? | | ??# """* """ "???????????????? | | ??# """ @ """ "???????????????? | | ??# """ """ "???????????????? | | ??# ????????????? | | ??# """ " " "" """ #??????????? | | ??# """ " " """ """???????l?????? | | ??# """ """ """ "???????????????? | | ??# ???????????????? | | ??? ????????????????? | | ???#############????????????????? | | ????????????????????????????????? | | ????????????????????????????????? | | ????????????????????????????????? | | ????????????????????????????????? | | ????????????????????????????????? | | ????????????????????????????????? | | ????????????????????????????????? | | ????????????????????????????????? | | ????????????????????????????????? | | ????????????????????????????????? | | ????????????????????????????????? | | ????????????????????????????????? | | ????????????????????????????????? | | ????????????????????????????????? | | ????????????????????????????????? | | ????????????????????????????????? | +----------------------------------------------------+ Best States ------------- Heat Dissipation 25 Energy Generation 14 Energy Capacity 265 Matter Stores 300 Matter Capacity 300 Sight Range 16 Terrain Scan Density 10 Evasion (%) 40 Recoil Reduction 2 Item Schematics ----------------- None Robot Schematics ------------------ None Fabricated ------------ Nothing Alien Tech Used ----------------- None Achievements -------------- Dynamic Key Challenges ------------ None Game ------ Seed InertialThrusterBattery Manual? 0 Play Time 00:19:54 Cumulative 12.2 hours Start 2020.09.24 @ 09:41:35 End 2020.09.24 @ 10:01:14 Sessions 1 Manual Loads 0 Difficulty Rogue Special Mode None Game No. 19 Rogue 19 Adventurer 0 Explorer 0 Win Type - Total 0 Types 0/0/0/0/0/0/0/0/0 Lore% 10 Gallery% 14 Achievement% 17 Wizard Run 0 Options --------- ASCII 0 Keyboard 0 Movement Mouse Keybinds 0 Fullscreen 1 Font 18/X11 Map View 76x50 Tactical HUD 1 Map Filters NONE Filters NONE Steam 0 RUN: ed87637f-ce17-4a9c-8ff7-b75f32a03333